[Event "Titled Tuesday Blitz July 25 Early 2023"]
[White "Li, Hui"]
[Black "Amilal Munkhdalai"]
[WhiteFideId "15400310"]
[BlackFideId "4903250"]
[WhiteElo "2391"]
[BlackElo "2728"]
[Result "0-1"]
[Round "1"]
[TimeControl "180+2"]
[Date "2023.07.25"]
[WhiteClock "0:00:03"]
[BlackClock "0:00:41"]
[Board "115"]

1. e4 {[%clk 0:03:00]}  c5 {[%clk 0:03:00]} 2. Nf3 {[%clk 0:02:58]}  Nc6 {[%clk 0:03:00]} 3. d4 {[%clk 0:02:57]}  cxd4 {[%clk 0:03:00]} 4. Nxd4 {[%clk 0:02:58]}  Qc7 {[%clk 0:03:01]} 5. Nc3 {[%clk 0:02:57]}  e6 {[%clk 0:03:01]} 6. Be2 {[%clk 0:02:57]}  Nf6 {[%clk 0:03:02]} 7. O-O {[%clk 0:02:57]}  Bb4 {[%clk 0:03:02]} 8. Be3 {[%clk 0:02:50]}  a6 {[%clk 0:02:59]} 9. Na4 {[%clk 0:02:48]}  O-O {[%clk 0:02:54]} 10. Nxc6 {[%clk 0:02:47]}  bxc6 {[%clk 0:02:54]} 11. Nb6 {[%clk 0:02:47]}  Rb8 {[%clk 0:02:54]} 12. Nxc8 {[%clk 0:02:48]}  Rfxc8 {[%clk 0:02:53]} 13. Bxa6 {[%clk 0:02:47]}  Re8 {[%clk 0:02:53]} 14. Bd3 {[%clk 0:02:38]}  Bd6 {[%clk 0:02:53]} 15. Kh1 {[%clk 0:02:33]}  Be5 {[%clk 0:02:43]} 16. f4 {[%clk 0:02:23]}  Bxb2 {[%clk 0:02:42]} 17. Rb1 {[%clk 0:02:23]}  e5 {[%clk 0:02:36]} 18. f5 {[%clk 0:01:53]}  d5 {[%clk 0:02:34]} 19. Qf3 {[%clk 0:01:39]}  Bc3 {[%clk 0:02:18]} 20. Rb3 {[%clk 0:01:35]}  Rxb3 {[%clk 0:02:17]} 21. axb3 {[%clk 0:01:29]}  Qa5 {[%clk 0:02:16]} 22. g4 {[%clk 0:01:20]}  Qb4 {[%clk 0:02:15]} 23. Qg2 {[%clk 0:01:03]}  Nxe4 {[%clk 0:02:06]} 24. Bxe4 {[%clk 0:01:03]}  dxe4 {[%clk 0:02:06]} 25. g5 {[%clk 0:00:54]}  Rd8 {[%clk 0:01:46]} 26. g6 {[%clk 0:00:51]}  Bd4 {[%clk 0:01:22]} 27. gxf7+ {[%clk 0:00:46]}  Kxf7 {[%clk 0:01:20]} 28. Qxe4 {[%clk 0:00:46]}  Qc5 {[%clk 0:01:14]} 29. Bg5 {[%clk 0:00:44]}  Qd5 {[%clk 0:01:09]} 30. Re1 {[%clk 0:00:34]}  Qxe4+ {[%clk 0:01:06]} 31. Rxe4 {[%clk 0:00:35]}  Rd5 {[%clk 0:01:07]} 32. c4 {[%clk 0:00:33]}  Ra5 {[%clk 0:01:05]} 33. Kg2 {[%clk 0:00:21]}  Ra3 {[%clk 0:01:03]} 34. b4 {[%clk 0:00:18]}  Ra4 {[%clk 0:01:03]} 35. b5 {[%clk 0:00:15]}  Rxc4 {[%clk 0:01:02]} 36. bxc6 {[%clk 0:00:15]}  Rxc6 {[%clk 0:01:02]} 37. Be3 {[%clk 0:00:12]}  Bxe3 {[%clk 0:01:01]} 38. Rxe3 {[%clk 0:00:13]}  Kf6 {[%clk 0:01:01]} 39. Rh3 {[%clk 0:00:08]}  h6 {[%clk 0:00:57]} 40. Rg3 {[%clk 0:00:09]}  Rc7 {[%clk 0:00:53]} 41. Rf3 {[%clk 0:00:08]}  Rc4 {[%clk 0:00:52]} 42. Kg3 {[%clk 0:00:07]}  Kg5 {[%clk 0:00:50]} 43. h3 {[%clk 0:00:06]}  Rf4 {[%clk 0:00:49]} 44. Ra3 {[%clk 0:00:02]}  Rxf5 {[%clk 0:00:48]} 45. Ra7 {[%clk 0:00:02]}  Kg6 {[%clk 0:00:47]} 46. Kg4 {[%clk 0:00:02]}  Rf4+ {[%clk 0:00:47]} 47. Kg3 {[%clk 0:00:03]}  Rf6 {[%clk 0:00:47]} 48. Re7 {[%clk 0:00:03]}  Rf5 {[%clk 0:00:46]} 49. Kg4 {[%clk 0:00:03]}  Kf6 {[%clk 0:00:42]} 50. Rxg7 {[%clk 0:00:04]}  Rf4+ {[%clk 0:00:42]} 51. Kh5 {[%clk 0:00:03]}  Kxg7 {[%clk 0:00:42]} 52. h4 {[%clk 0:00:03]}  Rf6 {[%clk 0:00:41]} 0-1


[Site "https://www.chess.com"]

[Event "Titled Tuesday Blitz July 25 Early 2023"]
[White "Nasuta, Grzegorz"]
[Black "Tobak, Mikhail"]
[WhiteFideId "1141686"]
[BlackFideId "14165570"]
[WhiteElo "2724"]
[BlackElo "2388"]
[Result "0-1"]
[Round "1"]
[TimeControl "180+2"]
[Date "2023.07.25"]
[WhiteClock "0:00:02"]
[BlackClock "0:01:36"]
[Board "116"]

1. e4 {[%clk 0:02:59]}  Nf6 {[%clk 0:02:57]} 2. e5 {[%clk 0:02:54]}  Nd5 {[%clk 0:02:57]} 3. d4 {[%clk 0:02:55]}  d6 {[%clk 0:02:57]} 4. c4 {[%clk 0:02:54]}  Nb6 {[%clk 0:02:57]} 5. exd6 {[%clk 0:02:55]}  cxd6 {[%clk 0:02:58]} 6. Nc3 {[%clk 0:02:52]}  g6 {[%clk 0:02:59]} 7. Be3 {[%clk 0:02:47]}  Bg7 {[%clk 0:02:59]} 8. Rc1 {[%clk 0:02:47]}  Bf5 {[%clk 0:02:57]} 9. b3 {[%clk 0:02:32]}  d5 {[%clk 0:02:57]} 10. c5 {[%clk 0:02:23]}  Nc8 {[%clk 0:02:57]} 11. g4 {[%clk 0:02:11]}  Be6 {[%clk 0:02:57]} 12. Bg2 {[%clk 0:02:11]}  Nc6 {[%clk 0:02:44]} 13. h3 {[%clk 0:02:05]}  f6 {[%clk 0:02:44]} 14. Nge2 {[%clk 0:01:52]}  Bf7 {[%clk 0:02:44]} 15. O-O {[%clk 0:01:49]}  O-O {[%clk 0:02:42]} 16. a3 {[%clk 0:01:35]}  e6 {[%clk 0:02:39]} 17. b4 {[%clk 0:01:34]}  a6 {[%clk 0:02:39]} 18. Qd2 {[%clk 0:01:21]}  N8e7 {[%clk 0:02:38]} 19. Rfe1 {[%clk 0:01:19]}  e5 {[%clk 0:02:34]} 20. dxe5 {[%clk 0:00:51]}  Nxe5 {[%clk 0:02:23]} 21. Rcd1 {[%clk 0:00:40]}  f5 {[%clk 0:02:08]} 22. gxf5 {[%clk 0:00:18]}  Nxf5 {[%clk 0:02:02]} 23. Bg5 {[%clk 0:00:18]}  Bf6 {[%clk 0:01:42]} 24. Bxf6 {[%clk 0:00:16]}  Qxf6 {[%clk 0:01:42]} 25. Nxd5 {[%clk 0:00:17]}  Bxd5 {[%clk 0:01:38]} 26. Qxd5+ {[%clk 0:00:18]}  Kh8 {[%clk 0:01:38]} 27. Nf4 {[%clk 0:00:06]}  Rae8 {[%clk 0:01:38]} 28. Qxb7 {[%clk 0:00:04]}  Nh4 {[%clk 0:01:37]} 29. Nd5 {[%clk 0:00:02]}  Qxf2+ {[%clk 0:01:36]} 30. Kh1 {[%clk 0:00:02]}  Qxg2# {[%clk 0:01:36]} 0-1


[Site "https://www.chess.com"]

[Event "Titled Tuesday Blitz July 25 Early 2023"]
[White "Alvarado Diaz, Alejandro"]
[Black "Suyarov, Mukhammadzokhid"]
[WhiteFideId "2276119"]
[BlackFideId "14210495"]
[WhiteElo "2381"]
[BlackElo "2718"]
[Result "0-1"]
[Round "1"]
[TimeControl "180+2"]
[Date "2023.07.25"]
[WhiteClock "0:01:26"]
[BlackClock "0:02:39"]
[Board "119"]

1. d4 {[%clk 0:02:58]}  e6 {[%clk 0:02:59]} 2. Bf4 {[%clk 0:02:59]}  Nf6 {[%clk 0:02:59]} 3. e3 {[%clk 0:02:59]}  b6 {[%clk 0:02:59]} 4. c4 {[%clk 0:02:57]}  Bb7 {[%clk 0:02:59]} 5. Nc3 {[%clk 0:02:57]}  Bb4 {[%clk 0:02:59]} 6. Nf3 {[%clk 0:02:54]}  O-O {[%clk 0:02:59]} 7. Bd3 {[%clk 0:02:49]}  d6 {[%clk 0:02:59]} 8. O-O {[%clk 0:02:48]}  Nbd7 {[%clk 0:02:59]} 9. h3 {[%clk 0:02:45]}  Re8 {[%clk 0:02:57]} 10. Bh2 {[%clk 0:02:44]}  e5 {[%clk 0:02:57]} 11. d5 {[%clk 0:02:44]}  Bxc3 {[%clk 0:02:57]} 12. bxc3 {[%clk 0:02:35]}  e4 {[%clk 0:02:57]} 13. Nd4 {[%clk 0:02:27]}  exd3 {[%clk 0:02:58]} 14. Qxd3 {[%clk 0:02:28]}  Ne5 {[%clk 0:02:55]} 15. Qe2 {[%clk 0:02:28]}  Qd7 {[%clk 0:02:56]} 16. a4 {[%clk 0:02:20]}  Ba6 {[%clk 0:02:55]} 17. Nb5 {[%clk 0:02:18]}  Ne4 {[%clk 0:02:55]} 18. f3 {[%clk 0:02:05]}  Nc5 {[%clk 0:02:50]} 19. e4 {[%clk 0:01:50]}  f5 {[%clk 0:02:49]} 20. f4 {[%clk 0:01:46]}  Nxc4 {[%clk 0:02:43]} 21. Qxc4 {[%clk 0:01:44]}  Rxe4 {[%clk 0:02:42]} 22. Qa2 {[%clk 0:01:40]}  Rxa4 {[%clk 0:02:40]} 23. Na3 {[%clk 0:01:28]}  Bxf1 {[%clk 0:02:39]} 24. Rxf1 {[%clk 0:01:29]}  Re8 {[%clk 0:02:39]} 25. Qc2 {[%clk 0:01:26]}  Rxa3 {[%clk 0:02:39]} 0-1


[Site "https://www.chess.com"]

[Event "Titled Tuesday Blitz July 25 Early 2023"]
[White "Darini, Pouria"]
[Black "Eggleston, Thomas A"]
[WhiteFideId "12502200"]
[BlackFideId "412139"]
[WhiteElo "2714"]
[BlackElo "2379"]
[Result "1-0"]
[Round "1"]
[TimeControl "180+2"]
[Date "2023.07.25"]
[WhiteClock "0:01:04"]
[BlackClock "0:00:03"]
[Board "122"]

1. e4 {[%clk 0:03:00]}  e6 {[%clk 0:03:00]} 2. d4 {[%clk 0:03:00]}  d5 {[%clk 0:02:59]} 3. Nc3 {[%clk 0:03:01]}  Nf6 {[%clk 0:02:59]} 4. e5 {[%clk 0:03:01]}  Nfd7 {[%clk 0:02:59]} 5. f4 {[%clk 0:03:01]}  c5 {[%clk 0:02:59]} 6. Nf3 {[%clk 0:03:02]}  Nc6 {[%clk 0:02:59]} 7. Be3 {[%clk 0:03:02]}  a6 {[%clk 0:02:59]} 8. Qd2 {[%clk 0:02:48]}  Qb6 {[%clk 0:02:57]} 9. Na4 {[%clk 0:02:45]}  Qb4 {[%clk 0:02:56]} 10. Qxb4 {[%clk 0:02:39]}  Nxb4 {[%clk 0:02:56]} 11. Kd2 {[%clk 0:02:33]}  b6 {[%clk 0:02:56]} 12. c3 {[%clk 0:02:31]}  Nc6 {[%clk 0:02:56]} 13. b3 {[%clk 0:02:23]}  Be7 {[%clk 0:02:44]} 14. Bd3 {[%clk 0:02:21]}  O-O {[%clk 0:02:17]} 15. dxc5 {[%clk 0:01:57]}  bxc5 {[%clk 0:02:13]} 16. c4 {[%clk 0:01:57]}  dxc4 {[%clk 0:02:02]} 17. Bxc4 {[%clk 0:01:56]}  Rd8 {[%clk 0:01:59]} 18. Ke2 {[%clk 0:01:55]}  Na5 {[%clk 0:01:56]} 19. Bd3 {[%clk 0:01:53]}  Bb7 {[%clk 0:01:53]} 20. Rac1 {[%clk 0:01:52]}  Rac8 {[%clk 0:01:51]} 21. Rc3 {[%clk 0:01:37]}  f6 {[%clk 0:01:26]} 22. Rhc1 {[%clk 0:01:29]}  fxe5 {[%clk 0:01:26]} 23. fxe5 {[%clk 0:01:27]}  Bxf3+ {[%clk 0:01:20]} 24. gxf3 {[%clk 0:01:27]}  Nxe5 {[%clk 0:01:18]} 25. Bxa6 {[%clk 0:01:28]}  Ra8 {[%clk 0:01:02]} 26. Bxc5 {[%clk 0:01:18]}  Bg5 {[%clk 0:00:40]} 27. Be3 {[%clk 0:01:18]}  Bxe3 {[%clk 0:00:26]} 28. Rxe3 {[%clk 0:01:18]}  Nac6 {[%clk 0:00:26]} 29. Bb7 {[%clk 0:01:14]}  Nd4+ {[%clk 0:00:25]} 30. Kf2 {[%clk 0:01:13]}  Rab8 {[%clk 0:00:22]} 31. Nc5 {[%clk 0:01:10]}  Ng6 {[%clk 0:00:17]} 32. a4 {[%clk 0:01:04]}  Nf4 {[%clk 0:00:16]} 33. a5 {[%clk 0:01:04]}  Nxb3 {[%clk 0:00:06]} 34. Rxb3 {[%clk 0:01:03]}  Nd3+ {[%clk 0:00:02]} 35. Rxd3 {[%clk 0:01:02]}  Rxd3 {[%clk 0:00:02]} 36. Nxd3 {[%clk 0:01:03]}  Rxb7 {[%clk 0:00:02]} 37. a6 {[%clk 0:01:04]}  Ra7 {[%clk 0:00:03]} 38. Ra1 {[%clk 0:01:04]} 1-0


[Site "https://www.chess.com"]

[Event "Titled Tuesday Blitz July 25 Early 2023"]
[White "Rosenberg, Evan S"]
[Black "NikaVolkov"]
[WhiteFideId "2019299"]
[WhiteElo "2379"]
[BlackElo "2714"]
[Result "0-1"]
[Round "1"]
[TimeControl "180+2"]
[Date "2023.07.25"]
[WhiteClock "0:00:27"]
[BlackClock "0:01:33"]
[Board "123"]

1. d4 {[%clk 0:02:59]}  e6 {[%clk 0:03:00]} 2. g3 {[%clk 0:02:59]}  d5 {[%clk 0:02:59]} 3. Nf3 {[%clk 0:02:58]}  Nf6 {[%clk 0:03:00]} 4. Bg2 {[%clk 0:02:58]}  Be7 {[%clk 0:03:00]} 5. O-O {[%clk 0:02:58]}  O-O {[%clk 0:03:01]} 6. c4 {[%clk 0:02:59]}  dxc4 {[%clk 0:02:59]} 7. Qc2 {[%clk 0:02:57]}  a6 {[%clk 0:02:59]} 8. a4 {[%clk 0:02:55]}  Nbd7 {[%clk 0:02:59]} 9. Qxc4 {[%clk 0:02:51]}  b5 {[%clk 0:03:00]} 10. Qc2 {[%clk 0:02:50]}  Bb7 {[%clk 0:03:00]} 11. Ne5 {[%clk 0:02:25]}  Bxg2 {[%clk 0:02:56]} 12. Kxg2 {[%clk 0:02:26]}  Nxe5 {[%clk 0:02:55]} 13. dxe5 {[%clk 0:02:27]}  Qd5+ {[%clk 0:02:55]} 14. f3 {[%clk 0:02:17]}  Qxe5 {[%clk 0:02:55]} 15. Bf4 {[%clk 0:02:17]}  Qf5 {[%clk 0:02:48]} 16. e4 {[%clk 0:02:15]}  Qg6 {[%clk 0:02:41]} 17. Qxc7 {[%clk 0:02:10]}  Nh5 {[%clk 0:02:33]} 18. Kh1 {[%clk 0:01:55]}  Nxf4 {[%clk 0:02:31]} 19. gxf4 {[%clk 0:01:48]}  Bf6 {[%clk 0:02:20]} 20. Nc3 {[%clk 0:01:37]}  b4 {[%clk 0:02:16]} 21. Ne2 {[%clk 0:01:31]}  Rac8 {[%clk 0:02:12]} 22. Qa5 {[%clk 0:01:27]}  Rc2 {[%clk 0:02:11]} 23. Ng3 {[%clk 0:01:26]}  Bxb2 {[%clk 0:02:09]} 24. Rae1 {[%clk 0:01:19]}  Bc3 {[%clk 0:02:08]} 25. Re2 {[%clk 0:01:19]}  Rxe2 {[%clk 0:02:02]} 26. Nxe2 {[%clk 0:01:20]}  e5 {[%clk 0:01:54]} 27. Nxc3 {[%clk 0:01:13]}  bxc3 {[%clk 0:01:54]} 28. fxe5 {[%clk 0:01:14]}  Qc6 {[%clk 0:01:52]} 29. Rc1 {[%clk 0:01:09]}  c2 {[%clk 0:01:51]} 30. Qd2 {[%clk 0:00:56]}  Rc8 {[%clk 0:01:50]} 31. a5 {[%clk 0:00:57]}  h5 {[%clk 0:01:49]} 32. h4 {[%clk 0:00:56]}  g6 {[%clk 0:01:43]} 33. Kg2 {[%clk 0:00:56]}  Qc7 {[%clk 0:01:37]} 34. Qd5 {[%clk 0:00:42]}  Rd8 {[%clk 0:01:34]} 35. Qb3 {[%clk 0:00:37]}  Rd2+ {[%clk 0:01:34]} 36. Kg3 {[%clk 0:00:28]}  Qxe5+ {[%clk 0:01:33]} 37. f4 {[%clk 0:00:29]}  Qxe4 {[%clk 0:01:33]} 38. Qb8+ {[%clk 0:00:27]}  Kh7 {[%clk 0:01:33]} 0-1


[Site "https://www.chess.com"]

[Event "Titled Tuesday Blitz July 25 Early 2023"]
[White "Melikhov, Evgeny V."]
[Black "Koellner, Ruben Gideon"]
[WhiteFideId "4122046"]
[BlackFideId "12993093"]
[WhiteElo "2374"]
[BlackElo "2714"]
[Result "1-0"]
[Round "1"]
[TimeControl "180+2"]
[Date "2023.07.25"]
[WhiteClock "0:00:04"]
[BlackClock "0:00:01"]
[Board "125"]

1. d4 {[%clk 0:03:00]}  d6 {[%clk 0:02:55]} 2. e4 {[%clk 0:02:59]}  Nf6 {[%clk 0:02:51]} 3. Bd3 {[%clk 0:02:59]}  e5 {[%clk 0:02:47]} 4. d5 {[%clk 0:02:59]}  Be7 {[%clk 0:02:47]} 5. c4 {[%clk 0:02:56]}  c6 {[%clk 0:02:43]} 6. Nc3 {[%clk 0:02:55]}  O-O {[%clk 0:02:37]} 7. h3 {[%clk 0:02:52]}  a6 {[%clk 0:02:37]} 8. Nf3 {[%clk 0:02:51]}  b5 {[%clk 0:02:16]} 9. a3 {[%clk 0:02:41]}  Bb7 {[%clk 0:02:04]} 10. O-O {[%clk 0:02:10]}  bxc4 {[%clk 0:01:43]} 11. Bxc4 {[%clk 0:02:08]}  Nbd7 {[%clk 0:01:42]} 12. b4 {[%clk 0:01:47]}  Nb6 {[%clk 0:01:34]} 13. Bb3 {[%clk 0:01:39]}  cxd5 {[%clk 0:01:17]} 14. Nxd5 {[%clk 0:01:33]}  Nxe4 {[%clk 0:00:57]} 15. Nxe7+ {[%clk 0:01:33]}  Qxe7 {[%clk 0:00:57]} 16. Bb2 {[%clk 0:01:33]}  Rac8 {[%clk 0:00:55]} 17. Qd3 {[%clk 0:01:26]}  Nf6 {[%clk 0:00:48]} 18. Rad1 {[%clk 0:01:09]}  Rfd8 {[%clk 0:00:23]} 19. Rfe1 {[%clk 0:01:08]}  Qc7 {[%clk 0:00:09]} 20. Ng5 {[%clk 0:01:05]}  Bd5 {[%clk 0:00:06]} 21. Bxd5 {[%clk 0:01:00]}  Nbxd5 {[%clk 0:00:07]} 22. Nxh7 {[%clk 0:00:55]}  Nxh7 {[%clk 0:00:06]} 23. Qxd5 {[%clk 0:00:55]}  Nf6 {[%clk 0:00:06]} 24. Qd3 {[%clk 0:00:45]}  Qc2 {[%clk 0:00:06]} 25. Re2 {[%clk 0:00:40]}  Qxd3 {[%clk 0:00:06]} 26. Rxd3 {[%clk 0:00:41]}  Kf8 {[%clk 0:00:06]} 27. g4 {[%clk 0:00:39]}  Ke7 {[%clk 0:00:06]} 28. f4 {[%clk 0:00:35]}  Nd7 {[%clk 0:00:02]} 29. fxe5 {[%clk 0:00:28]}  dxe5 {[%clk 0:00:03]} 30. Bxe5 {[%clk 0:00:28]}  Nxe5 {[%clk 0:00:04]} 31. Rxe5+ {[%clk 0:00:28]}  Kf6 {[%clk 0:00:04]} 32. Rf5+ {[%clk 0:00:26]}  Kg6 {[%clk 0:00:04]} 33. Rdf3 {[%clk 0:00:25]}  f6 {[%clk 0:00:04]} 34. Rc5 {[%clk 0:00:23]}  Rxc5 {[%clk 0:00:04]} 35. bxc5 {[%clk 0:00:23]}  Rd1+ {[%clk 0:00:04]} 36. Rf1 {[%clk 0:00:21]}  Rd3 {[%clk 0:00:04]} 37. Rc1 {[%clk 0:00:20]}  Rd7 {[%clk 0:00:03]} 38. c6 {[%clk 0:00:20]}  Rc7 {[%clk 0:00:04]} 39. Kf2 {[%clk 0:00:21]}  Kf7 {[%clk 0:00:04]} 40. Kf3 {[%clk 0:00:21]}  Ke6 {[%clk 0:00:05]} 41. Ke4 {[%clk 0:00:21]}  g6 {[%clk 0:00:05]} 42. h4 {[%clk 0:00:21]}  Kd6 {[%clk 0:00:03]} 43. h5 {[%clk 0:00:20]}  gxh5 {[%clk 0:00:03]} 44. gxh5 {[%clk 0:00:21]}  Re7+ {[%clk 0:00:01]} 45. Kf5 {[%clk 0:00:21]}  Kc7 {[%clk 0:00:01]} 46. Kxf6 {[%clk 0:00:19]}  Re3 {[%clk 0:00:02]} 47. h6 {[%clk 0:00:17]}  Rxa3 {[%clk 0:00:02]} 48. Rh1 {[%clk 0:00:14]}  Rf3+ {[%clk 0:00:02]} 49. Ke7 {[%clk 0:00:12]}  Re3+ {[%clk 0:00:03]} 50. Kf7 {[%clk 0:00:12]}  Rf3+ {[%clk 0:00:03]} 51. Ke6 {[%clk 0:00:09]}  Re3+ {[%clk 0:00:04]} 52. Kd5 {[%clk 0:00:07]}  Rd3+ {[%clk 0:00:02]} 53. Kc4 {[%clk 0:00:07]}  Rd8 {[%clk 0:00:03]} 54. h7 {[%clk 0:00:07]}  Rh8 {[%clk 0:00:03]} 55. Kc5 {[%clk 0:00:07]}  a5 {[%clk 0:00:02]} 56. Rb1 {[%clk 0:00:07]}  a4 {[%clk 0:00:01]} 57. Rb7+ {[%clk 0:00:07]}  Kc8 {[%clk 0:00:01]} 58. Kb6 {[%clk 0:00:06]}  a3 {[%clk 0:00:01]} 59. Ra7 {[%clk 0:00:04]} 1-0


[Site "https://www.chess.com"]

[Event "Titled Tuesday Blitz July 25 Early 2023"]
[White "Goroshkov, Maksym"]
[Black "Alahakoon, Isuru"]
[WhiteFideId "14142716"]
[BlackFideId "9900993"]
[WhiteElo "2704"]
[BlackElo "2365"]
[Result "1-0"]
[Round "1"]
[TimeControl "180+2"]
[Date "2023.07.25"]
[WhiteClock "0:00:11"]
[BlackClock "0:00:01"]
[Board "130"]

1. e4 {[%clk 0:02:59]}  d5 {[%clk 0:03:00]} 2. exd5 {[%clk 0:02:58]}  Qxd5 {[%clk 0:03:01]} 3. Nc3 {[%clk 0:02:59]}  Qa5 {[%clk 0:03:01]} 4. Nf3 {[%clk 0:02:59]}  Nf6 {[%clk 0:03:01]} 5. d4 {[%clk 0:03:00]}  Bg4 {[%clk 0:03:01]} 6. Be2 {[%clk 0:03:00]}  Nc6 {[%clk 0:03:00]} 7. O-O {[%clk 0:03:01]}  O-O-O {[%clk 0:02:58]} 8. Be3 {[%clk 0:03:01]}  e5 {[%clk 0:02:56]} 9. Ng5 {[%clk 0:02:00]}  Bxe2 {[%clk 0:02:43]} 10. Nxe2 {[%clk 0:01:59]}  exd4 {[%clk 0:02:43]} 11. Nxf7 {[%clk 0:01:51]}  dxe3 {[%clk 0:02:41]} 12. Nxd8 {[%clk 0:01:51]}  Nxd8 {[%clk 0:02:42]} 13. fxe3 {[%clk 0:01:50]}  Bc5 {[%clk 0:02:42]} 14. Nd4 {[%clk 0:01:50]}  Re8 {[%clk 0:02:39]} 15. Qd3 {[%clk 0:01:49]}  Ne6 {[%clk 0:02:31]} 16. Qf5 {[%clk 0:01:42]}  Kb8 {[%clk 0:02:13]} 17. Kh1 {[%clk 0:01:21]}  Nxd4 {[%clk 0:01:48]} 18. exd4 {[%clk 0:01:21]}  Bb6 {[%clk 0:01:49]} 19. Qxa5 {[%clk 0:01:19]}  Bxa5 {[%clk 0:01:50]} 20. c3 {[%clk 0:01:20]}  c6 {[%clk 0:01:22]} 21. Rae1 {[%clk 0:01:19]}  Rxe1 {[%clk 0:01:15]} 22. Rxe1 {[%clk 0:01:20]}  Bd8 {[%clk 0:01:15]} 23. h3 {[%clk 0:01:18]}  Kc7 {[%clk 0:01:15]} 24. g4 {[%clk 0:01:18]}  Kd7 {[%clk 0:01:11]} 25. Kg2 {[%clk 0:01:18]}  Nd5 {[%clk 0:01:10]} 26. Kf3 {[%clk 0:01:19]}  Bh4 {[%clk 0:01:07]} 27. Re5 {[%clk 0:01:17]}  g6 {[%clk 0:01:04]} 28. g5 {[%clk 0:01:10]}  Ne7 {[%clk 0:01:03]} 29. Kg4 {[%clk 0:01:09]}  Bf2 {[%clk 0:01:01]} 30. Re2 {[%clk 0:01:08]}  Bg1 {[%clk 0:00:59]} 31. Rg2 {[%clk 0:01:05]}  Be3 {[%clk 0:00:58]} 32. Kf3 {[%clk 0:01:05]}  Bc1 {[%clk 0:00:55]} 33. Rg1 {[%clk 0:01:05]}  Bd2 {[%clk 0:00:52]} 34. Rg2 {[%clk 0:00:49]}  Bc1 {[%clk 0:00:51]} 35. h4 {[%clk 0:00:48]}  Nf5 {[%clk 0:00:50]} 36. Rc2 {[%clk 0:00:48]}  Be3 {[%clk 0:00:37]} 37. h5 {[%clk 0:00:48]}  Bxg5 {[%clk 0:00:36]} 38. hxg6 {[%clk 0:00:44]}  hxg6 {[%clk 0:00:37]} 39. Rh2 {[%clk 0:00:44]}  Bh6 {[%clk 0:00:25]} 40. Ke4 {[%clk 0:00:38]}  Ke6 {[%clk 0:00:23]} 41. c4 {[%clk 0:00:36]}  Bg7 {[%clk 0:00:16]} 42. d5+ {[%clk 0:00:32]}  cxd5+ {[%clk 0:00:16]} 43. cxd5+ {[%clk 0:00:33]}  Kd6 {[%clk 0:00:17]} 44. Rg2 {[%clk 0:00:33]}  Ne7 {[%clk 0:00:15]} 45. b4 {[%clk 0:00:31]}  Bf6 {[%clk 0:00:12]} 46. a4 {[%clk 0:00:29]}  g5 {[%clk 0:00:10]} 47. Rf2 {[%clk 0:00:27]}  Bg7 {[%clk 0:00:08]} 48. Rf7 {[%clk 0:00:27]}  Bc3 {[%clk 0:00:08]} 49. b5 {[%clk 0:00:21]}  b6 {[%clk 0:00:07]} 50. Rh7 {[%clk 0:00:17]}  Bd2 {[%clk 0:00:04]} 51. Rh6+ {[%clk 0:00:17]}  Kd7 {[%clk 0:00:05]} 52. d6 {[%clk 0:00:15]}  Nc8 {[%clk 0:00:04]} 53. Kd5 {[%clk 0:00:15]}  Bf4 {[%clk 0:00:02]} 54. Rh7+ {[%clk 0:00:15]}  Kd8 {[%clk 0:00:02]} 55. d7 {[%clk 0:00:15]}  Ne7+ {[%clk 0:00:02]} 56. Ke6 {[%clk 0:00:16]}  Ng6 {[%clk 0:00:01]} 57. Rg7 {[%clk 0:00:11]}  Nf8+ {[%clk 0:00:01]} 58. Kd5 {[%clk 0:00:12]}  Nxd7 {[%clk 0:00:01]} 59. Kc6 {[%clk 0:00:11]} 1-0


[Site "https://www.chess.com"]

[Event "Titled Tuesday Blitz July 25 Early 2023"]
[White "Goswami, Vedant"]
[Black "Gubajdullin, Alexei"]
[WhiteFideId "5003725"]
[BlackFideId "4141202"]
[WhiteElo "2363"]
[BlackElo "2703"]
[Result "0-1"]
[Round "1"]
[TimeControl "180+2"]
[Date "2023.07.25"]
[WhiteClock "0:00:11"]
[BlackClock "0:00:37"]
[Board "131"]

1. b3 {[%clk 0:02:58]}  e5 {[%clk 0:02:54]} 2. Bb2 {[%clk 0:02:56]}  d6 {[%clk 0:02:54]} 3. e3 {[%clk 0:02:53]}  Nd7 {[%clk 0:02:49]} 4. d4 {[%clk 0:02:51]}  Ngf6 {[%clk 0:02:47]} 5. Nf3 {[%clk 0:02:47]}  exd4 {[%clk 0:02:46]} 6. Qxd4 {[%clk 0:02:41]}  g6 {[%clk 0:02:42]} 7. Nc3 {[%clk 0:02:35]}  Bg7 {[%clk 0:02:42]} 8. O-O-O {[%clk 0:02:27]}  O-O {[%clk 0:02:41]} 9. Qh4 {[%clk 0:02:14]}  h6 {[%clk 0:02:37]} 10. Bd3 {[%clk 0:02:11]}  Nc5 {[%clk 0:02:34]} 11. Rhe1 {[%clk 0:01:56]}  a5 {[%clk 0:02:15]} 12. e4 {[%clk 0:01:32]}  g5 {[%clk 0:02:13]} 13. Nxg5 {[%clk 0:01:17]}  hxg5 {[%clk 0:02:12]} 14. Qxg5 {[%clk 0:01:16]}  Ng4 {[%clk 0:02:12]} 15. Qxd8 {[%clk 0:01:05]}  Rxd8 {[%clk 0:02:11]} 16. f3 {[%clk 0:01:05]}  Bh6+ {[%clk 0:02:03]} 17. Kb1 {[%clk 0:01:04]}  Ne3 {[%clk 0:02:03]} 18. Rd2 {[%clk 0:00:59]}  Nc4 {[%clk 0:02:02]} 19. Bxc4 {[%clk 0:00:40]}  Bxd2 {[%clk 0:02:01]} 20. Rd1 {[%clk 0:00:41]}  Bxc3 {[%clk 0:02:01]} 21. Bxc3 {[%clk 0:00:40]}  Be6 {[%clk 0:02:01]} 22. Be2 {[%clk 0:00:34]}  d5 {[%clk 0:02:00]} 23. Bf6 {[%clk 0:00:32]}  Rd7 {[%clk 0:01:59]} 24. e5 {[%clk 0:00:31]}  Bf5 {[%clk 0:01:59]} 25. g4 {[%clk 0:00:27]}  Bh7 {[%clk 0:01:59]} 26. h4 {[%clk 0:00:27]}  d4 {[%clk 0:01:58]} 27. f4 {[%clk 0:00:24]}  d3 {[%clk 0:01:57]} 28. cxd3 {[%clk 0:00:23]}  Bxd3+ {[%clk 0:01:52]} 29. Bxd3 {[%clk 0:00:22]}  Rxd3 {[%clk 0:01:48]} 30. Rh1 {[%clk 0:00:18]}  Ne4 {[%clk 0:01:45]} 31. g5 {[%clk 0:00:17]}  Nxf6 {[%clk 0:01:44]} 32. exf6 {[%clk 0:00:17]}  Re8 {[%clk 0:01:42]} 33. h5 {[%clk 0:00:17]}  Re2 {[%clk 0:01:41]} 34. g6 {[%clk 0:00:16]}  Rdd2 {[%clk 0:01:41]} 35. h6 {[%clk 0:00:14]}  Rb2+ {[%clk 0:01:39]} 36. Kc1 {[%clk 0:00:14]}  Rec2+ {[%clk 0:01:35]} 37. Kd1 {[%clk 0:00:14]}  Rd2+ {[%clk 0:01:10]} 38. Kc1 {[%clk 0:00:13]}  fxg6 {[%clk 0:00:37]} 39. f7+ {[%clk 0:00:12]}  Kxf7 {[%clk 0:00:36]} 40. h7 {[%clk 0:00:12]}  Rdc2+ {[%clk 0:00:37]} 41. Kd1 {[%clk 0:00:11]}  Rb1+ {[%clk 0:00:37]} 42. Kxc2 {[%clk 0:00:11]}  Rxh1 {[%clk 0:00:37]} 0-1


[Site "https://www.chess.com"]